lending/lending_fUSD_20250621
["ID","MTS","AMOUNT","RATE_DAILY","PERIOD"]
[366839513,1750499823165,-490.0,0.00037607,120]
[366839514,1750499823193,-490.0,0.00037607,120]
[366839515,1750499823223,-231.62263733,0.00037607,120]
[366839516,1750499823252,-490.0,0.00037607,120]
[366839517,1750499823281,-490.0,0.00037607,120]
[366839518,1750499823310,-490.0,0.00037607,120]
[366839519,1750499823339,-490.0,0.00037607,120]
[366839520,1750499823370,-490.0,0.00037607,120]
[366839521,1750499823401,-490.0,0.00037607,120]
[366839522,1750499823433,-490.0,0.00037607,120]
[366839523,1750499823466,-490.0,0.00037607,120]
[366839524,1750499823496,-490.0,0.00037607,120]
[366839525,1750499823528,-436.25268796,0.00037607,120]
[366839526,1750499823560,-490.0,0.00037607,120]
[366839527,1750499823593,-490.0,0.00037607,120]
[366839528,1750499823624,-490.0,0.00037607,120]
[366839529,1750499823654,-490.0,0.00037607,120]
[366839530,1750499823685,-490.0,0.00037607,120]
[366839531,1750499823716,-398.24532389,0.00037607,120]
[366839532,1750499823748,-490.0,0.00037607,120]
[366839533,1750499823779,-970.48,0.00037607,120]
[366839534,1750499823809,-490.0,0.00037607,120]
[366839535,1750499823838,-490.0,0.00037607,120]
[366839536,1750499823869,-970.48,0.00037607,120]
[366839537,1750499823900,-497.62245658,0.00037607,120]
[366839538,1750499823931,-338.50221895,0.00037607,120]
[366839539,1750499878600,448.0,0.0002465,120]
[366839540,1750499879746,385.0,0.0002465,120]
[366839556,1750500081587,-797.5,0.0001807,2]
[366839557,1750500191382,-250.0,0.00021253,2]
[366839564,1750500478872,2000.0,0.00020929,120]
[366839570,1750500632306,-666.0,0.00020358,2]
[366839571,1750500632317,-1711.38,0.00020378,2]
[366839572,1750500632326,-184.14,0.00020903,2]
[366839573,1750500632336,-245.17,0.00020934,2]
[366839574,1750500632347,-253.9,0.00020934,2]
[366839575,1750500632356,-253.75,0.00020935,2]
[366839576,1750500632366,-300.49,0.00020935,2]
[366839577,1750500632375,-300.9,0.00020936,2]
[366839578,1750500632386,-245.79,0.00020954,2]
[366839579,1750500632396,-254.94,0.00020954,2]
[366839580,1750500632406,-247.33,0.00020956,2]
[366839581,1750500632416,-252.92,0.00020956,2]
[366839582,1750500632426,-303.41,0.00020961,2]
[366839583,1750500632436,-303.52,0.00020964,2]
[366839584,1750500632445,-250.0,0.0002098,2]
[366839585,1750500632456,-1200.0,0.00021053,2]
[366839586,1750500632466,-252.6,0.00021054,2]
[366839587,1750500632475,-248.5,0.00021054,2]
[366839588,1750500632485,-305.12,0.00021065,2]
[366839589,1750500632494,-305.88,0.00021065,2]
[366839590,1750500632504,-300.0,0.00021109,2]
[366839591,1750500632514,-253.92,0.0002111,2]
[366839592,1750500632524,-249.24,0.0002111,2]
[366839593,1750500632534,-301.69,0.00021128,2]
[366839594,1750500632543,-848.0,0.00021251,2]
[366839595,1750500632553,-217.0,0.00021252,2]
[366839596,1750500632563,-252.88,0.00021252,2]
[366839597,1750500632572,-305.22,0.00021252,2]
[366839598,1750500632583,-245.67,0.00021252,2]
[366839599,1750500632593,-248.12,0.00021252,2]
[366839600,1750500632603,-301.55,0.00021252,2]
[366839601,1750500632613,-250.37,0.00021252,2]
[366839602,1750500632622,-304.69,0.00021252,2]
[366839603,1750500632633,-247.97,0.00021252,2]
[366839604,1750500632643,-249.24,0.00021252,2]
[366839605,1750500632652,-304.91,0.00021252,2]
[366839606,1750500632662,-251.68,0.00021252,2]
[366839607,1750500632672,-254.27,0.00021252,2]
[366839608,1750500632682,-305.09,0.00021252,2]
[366839609,1750500632692,-252.93,0.00021252,2]
[366839610,1750500632702,-250.55,0.00021252,2]
[366839611,1750500632711,-253.76,0.00021253,2]
[366839612,1750500632721,-301.1,0.00021253,2]
[366839613,1750500632731,-253.26,0.00021253,2]
[366839614,1750500632742,-254.32,0.00021253,2]
[366839615,1750500632753,-302.78,0.00021253,2]
[366839616,1750500632763,-246.51,0.00021253,2]
[366839617,1750500632773,-249.67,0.00021253,2]
[366839618,1750500632783,-306.0,0.00021253,2]
[366839619,1750500632793,-252.35,0.00021253,2]
[366839620,1750500632803,-245.92,0.00021253,2]
[366839621,1750500632812,-300.97,0.00021253,2]
[366839622,1750500632822,-253.71,0.00021253,2]
[366839623,1750500632832,-303.15,0.00021253,2]
[366839624,1750500632842,-246.24,0.00021253,2]
[366839625,1750500632851,-252.15,0.00021253,2]
[366839626,1750500632861,-301.09,0.00021253,2]
[366839627,1750500632873,-248.12,0.00021253,2]
[366839628,1750500632883,-245.43,0.00021253,2]
[366839630,1750500632892,-302.31,0.00021253,2]
[366839632,1750500632902,-252.01,0.00021253,2]
[366839634,1750500632912,-247.89,0.00021253,2]
[366839636,1750500632922,-300.63,0.00021253,2]
[366839638,1750500632931,-248.11,0.00021253,2]
[366839640,1750500632941,-250.16,0.00021253,2]
[366839642,1750500632954,-301.15,0.00021253,2]
[366839644,1750500632964,-254.44,0.00021253,2]
[366839646,1750500632974,-300.04,0.00021253,2]
[366839648,1750500632983,-248.55,0.00021253,2]
[366839650,1750500632993,-254.27,0.00021253,2]
[366839652,1750500633003,-248.26,0.00021253,2]
[366839654,1750500633012,-304.51,0.00021253,2]
[366839656,1750500633022,-253.2,0.00021254,2]
[366839657,1750500633032,-248.6,0.00021254,2]
[366839658,1750500633042,-305.2,0.00021254,2]
[366839659,1750500633052,-2393.86,0.00021254,2]
[366839660,1750500633062,-1298.2,0.00021254,2]
[366839661,1750500633074,-7305.12,0.00021254,2]
[366839662,1750500633084,-305.89,0.00021255,2]
[366839663,1750500633093,-253.08,0.00021255,2]
[366839664,1750500633102,-254.69,0.00021255,2]
[366839665,1750500633112,-303.24,0.00021255,2]
[366839666,1750500633121,-253.13,0.00021255,2]
[366839667,1750500633131,-245.67,0.00021255,2]
[366839668,1750500633141,-305.01,0.00021255,2]
[366839669,1750500633152,-249.81,0.00021255,2]
[366839670,1750500633162,-303.13,0.00021255,2]
[366839671,1750500633172,-254.3,0.00021255,2]
[366839672,1750500633181,-247.66,0.00021255,2]
[366839673,1750500633191,-301.57,0.00021255,2]
[366839674,1750500633200,-251.58,0.00021255,2]
[366839675,1750500633211,-248.36,0.00021255,2]
[366839676,1750500633221,-300.79,0.00021255,2]
[366839677,1750500633230,-249.05,0.00021255,2]
[366839678,1750500633241,-247.07,0.00021255,2]
[366839679,1750500633250,-304.34,0.00021255,2]
[366839680,1750500633260,-2393.86,0.0002126,2]
[366839681,1750500633269,-2393.86,0.00021266,2]
[366839682,1750500633279,-151.0,0.0002127,2]
[366839683,1750500633290,-2393.86,0.00021271,2]
[366839684,1750500633300,-2393.86,0.00021277,2]
[366839685,1750500633309,-2393.86,0.00021282,2]
[366839686,1750500633319,-150.99,0.00021282,2]
[366839687,1750500633329,-2393.86,0.00021288,2]
[366839688,1750500633339,-2365.24469834,0.00021294,2]
[366839689,1750500633366,-28.61530166,0.00021294,2]
[366839690,1750500633375,-1121.38469834,0.00021299,2]
[366839691,1750500633442,-1272.47530166,0.00021299,2]
[366839692,1750500633452,-2393.86,0.00021305,2]
[366839693,1750500633462,-2393.86,0.0002131,2]
[366839694,1750500633472,-2393.86,0.00021316,2]
[366839695,1750500633482,-203.0,0.0002132,2]
[366839696,1750500633492,-1115.04907094,0.00021321,2]
[366839697,1750500633505,-1278.81092906,0.00021321,2]
[366839698,1750500633515,-64.92722488,0.00021325,2]
[366839699,1750500633555,-106.63932079,0.00021325,2]
[366839700,1750500633565,-596.63722886,0.00021327,2]
[366839701,1750500633576,-1078.10631902,0.00021327,2]
[366839702,1750500633589,-456.77248618,0.00021327,2]
[366839703,1750500633644,-262.34396594,0.00021327,2]
[366839704,1750500633655,-2393.86,0.00021333,2]
[366839705,1750500633664,-2393.86,0.00021338,2]
[366839706,1750500633674,-2393.86,0.00021344,2]
[366839707,1750500633685,-2393.86,0.00021349,2]
[366839708,1750500633695,-2393.86,0.00021355,2]
[366839709,1750500633705,-2393.86,0.00021361,2]
[366839710,1750500633715,-925.83,0.0002149,2]
[366839711,1750500633725,-130000.0,0.000215,2]
[366839712,1750500633735,-384.0,0.00021629,2]
[366839713,1750500633745,-373.45402299,0.00021736,2]
[366839714,1750500633755,-168.0,0.00021938,2]
[366839715,1750500633766,-5279.94042028,0.0002194,2]
[366839716,1750500633777,-2481.3750161,0.0002194,2]
[366839717,1750500633787,-416.638075,0.0002194,2]
[366839718,1750500633798,-925.83,0.0002199,2]
[366839719,1750500633809,-925.83,0.0002199,2]
[366839720,1750500633819,-925.83,0.0002199,2]
[366839721,1750500633829,-925.83,0.0002199,2]
[366839722,1750500633839,-95.02901298,0.00021999,2]
[366839723,1750500633851,-396.85002609,0.00021999,2]
[366839724,1750500634095,-618.4217083,0.00021999,2]
[366839725,1750500634105,-177.56206454,0.00021999,2]
[366839726,1750500634114,-53007.18280299,0.00022,2]
[366839728,1750500638443,-529864.29338847,0.00022,2]
[366839729,1750500638453,-23900.0,0.0002204,2]
[366839730,1750500638462,-151.0,0.0002211,2]
[366839731,1750500638472,-151.0,0.0002211,2]
[366839732,1750500638481,-152.46797554,0.0002211,2]
[366839733,1750500638491,-300.0,0.0002211,2]
[366839734,1750500638501,-500.0,0.0002211,2]
[366839735,1750500638511,-300.0,0.0002211,2]
[366839736,1750500638520,-500.0,0.0002211,2]
[366839737,1750500638530,-300.0,0.0002211,2]
[366839738,1750500638539,-500.0,0.0002211,2]
[366839739,1750500638549,-300.0,0.0002211,2]
[366839741,1750500638558,-583.94697035,0.0002211,2]
[366839743,1750500638568,-668.65185757,0.0002211,2]
[366839745,1750500638577,-300.0,0.0002211,2]
[366839747,1750500638586,-300.0,0.0002211,2]
[366839749,1750500638595,-151.0,0.0002211,2]
[366839751,1750500638605,-300.0,0.0002211,2]
[366839753,1750500638614,-300.0,0.0002211,2]
[366839755,1750500638624,-1957.856,0.0002211,2]
[366839757,1750500638634,-300.0,0.0002211,2]
[366839758,1750500638644,-500.0,0.0002211,2]
[366839759,1750500638654,-151.0,0.0002211,2]
[366839760,1750500638663,-300.0,0.0002211,2]
[366839761,1750500638673,-500.0,0.0002211,2]
[366839762,1750500638683,-151.0,0.0002211,2]
[366839763,1750500638692,-300.0,0.0002211,2]
[366839764,1750500638701,-500.0,0.0002211,2]
[366839765,1750500638711,-151.0,0.0002211,2]
[366839766,1750500638720,-300.0,0.0002211,2]
[366839767,1750500638729,-500.0,0.0002211,2]
[366839768,1750500638738,-300.0,0.0002211,2]
[366839769,1750500638748,-151.0,0.0002211,2]
[366839770,1750500638757,-500.0,0.0002211,2]
[366839771,1750500638767,-151.0,0.0002211,2]
[366839772,1750500638776,-300.0,0.0002211,2]
[366839773,1750500638785,-500.0,0.0002211,2]
[366839774,1750500638794,-500.0,0.0002211,2]
[366839775,1750500638804,-151.0,0.0002211,2]
[366839776,1750500638813,-300.0,0.0002211,2]
[366839777,1750500638823,-500.0,0.0002211,2]
[366839778,1750500638832,-500.0,0.0002211,2]
[366839779,1750500638842,-245.09919405,0.0002211,2]
[366839780,1750500638852,-500.0,0.0002211,2]
[366839781,1750500638861,-500.0,0.0002211,2]
[366839782,1750500638871,-500.0,0.0002211,2]
[366839783,1750500638884,-500.0,0.0002211,2]
[366839784,1750500638893,-500.0,0.0002211,2]
[366839785,1750500638902,-500.0,0.0002211,2]
[366839786,1750500638911,-500.0,0.0002211,2]
[366839787,1750500638922,-500.0,0.0002211,2]
[366839788,1750500638931,-500.0,0.0002211,2]
[366839789,1750500638940,-500.0,0.0002211,2]
[366839790,1750500638950,-500.0,0.0002211,2]
[366839791,1750500638959,-500.0,0.0002211,2]
[366839792,1750500638968,-500.0,0.0002211,2]
[366839793,1750500638977,-207.4,0.0002211,2]
[366839794,1750500639217,-500.0,0.0002211,2]
[366839795,1750500639227,-500.0,0.0002211,2]
[366839796,1750500639237,-151.0,0.0002211,2]
[366839797,1750500639247,-151.0,0.0002211,2]
[366839798,1750500639256,-151.0,0.0002211,2]
[366839799,1750500639265,-151.0,0.0002211,2]
[366839800,1750500639275,-151.0,0.0002211,2]
[366839801,1750500639284,-151.0,0.0002211,2]
[366839802,1750500639293,-151.0,0.0002211,2]
[366839803,1750500639302,-151.0,0.0002211,2]
[366839804,1750500639311,-151.0,0.0002211,2]
[366839805,1750500639320,-151.0,0.0002211,2]
[366839806,1750500639329,-151.0,0.0002211,2]
[366839807,1750500639338,-151.0,0.0002211,2]
[366839808,1750500639347,-151.0,0.0002211,2]
[366839809,1750500639358,-151.0,0.0002211,2]
[366839810,1750500639367,-151.0,0.0002211,2]
[366839811,1750500639377,-205.0,0.0002211,2]
[366839812,1750500639387,-150.0,0.00022148,2]
[366839813,1750500639396,-168.0,0.00022164,2]
[366839814,1750500639405,-2030.296672,0.00022165,2]
[366839815,1750500639415,-158.53,0.00022183,2]
[366839816,1750500639424,-2751.0,0.00022194,2]
[366839817,1750500639433,-2105.41764886,0.0002222,2]
[366839818,1750500639442,-5279.94042019,0.00022236,2]
[366839819,1750500639451,-2481.37501605,0.00022236,2]
[366839820,1750500639460,-203.0,0.00022241,3]
[366839821,1750500639470,-2183.31810187,0.00022275,2]
[366839822,1750500639479,-2264.10087164,0.0002233,2]
[366839823,1750500639489,-2032.63,0.00022355,2]
[366839824,1750500639498,-1049.42,0.00022379,2]
[366839825,1750500639508,-2347.87260389,0.00022385,2]
[366839826,1750500639517,-2434.74389024,0.0002244,2]
[366839827,1750500639527,-2524.82941417,0.00022495,2]
[366839828,1750500639537,-5279.94042019,0.00022531,2]
[366839829,1750500639547,-2481.37501605,0.00022531,2]
[366839830,1750500639557,-2618.2481025,0.0002255,2]
[366839831,1750500639566,-2715.12328229,0.00022605,2]
[366839832,1750500639576,-151.0,0.00022658,2]
[366839833,1750500639586,-157.22271904,0.00022658,2]
[366839834,1750500639596,-2815.58284374,0.0002266,2]
[366839835,1750500639605,-2919.75940895,0.00022715,2]
[366839836,1750500639615,-168.0,0.00022759,2]
[366839837,1750500639625,-3027.79050709,0.0002277,2]
[366839838,1750500639635,-2115.66328841,0.000228,8]
[366839839,1750500639645,-2115.66328814,0.000228,8]
[366839840,1750500639655,-2267.88357905,0.00022825,2]
[366839841,1750500639664,-5279.94042019,0.00022827,2]
[366839842,1750500639674,-2481.37501605,0.00022827,2]
[366839843,1750500639684,-500.0,0.00022827,2]
[366839844,1750500639693,-500.0,0.00022827,2]
[366839845,1750500639703,-500.0,0.00022827,2]
[366839846,1750500639713,-500.0,0.00022827,2]
[366839847,1750500639723,-500.0,0.00022827,2]
[366839848,1750500639732,-500.0,0.00022827,2]
[366839849,1750500639742,-500.0,0.00022827,2]
[366839850,1750500639751,-500.0,0.00022827,2]
[366839851,1750500639761,-500.0,0.00022827,2]
[366839852,1750500639770,-500.0,0.00022827,2]
[366839853,1750500639780,-500.0,0.00022827,2]
[366839854,1750500639789,-500.0,0.00022827,2]
[366839855,1750500639799,-500.0,0.00022827,2]
[366839856,1750500639808,-500.0,0.00022827,2]
[366839857,1750500639819,-500.0,0.00022827,2]
[366839858,1750500639830,-500.0,0.00022827,2]
[366839859,1750500639839,-500.0,0.00022827,2]
[366839860,1750500639850,-168.0,0.00022858,2]
[366839861,1750500639859,-500.0,0.000229,2]
[366839862,1750500639869,-500.0,0.000229,2]
[366839863,1750500639882,-500.0,0.000229,2]
[366839864,1750500639891,-500.0,0.000229,2]
[366839865,1750500639901,-500.0,0.000229,2]
[366839866,1750500639910,-500.0,0.000229,2]
[366839867,1750500639920,-500.0,0.000229,2]
[366839868,1750500639930,-500.0,0.000229,2]
[366839869,1750500639940,-500.0,0.000229,2]
[366839870,1750500639950,-500.0,0.000229,2]
[366839871,1750500639959,-500.0,0.000229,2]
[366839872,1750500639969,-500.0,0.000229,2]
[366839873,1750500639979,-500.0,0.000229,2]
[366839874,1750500639989,-500.0,0.000229,2]
[366839875,1750500639999,-500.0,0.000229,2]
[366839876,1750500640009,-500.0,0.000229,2]
[366839877,1750500640018,-500.0,0.000229,2]
[366839878,1750500640028,-500.0,0.000229,2]
[366839879,1750500640037,-500.0,0.000229,2]
[366839880,1750500640046,-277.88825688,0.00022903,2]
[366839881,1750500640056,-2115.66328814,0.00023003,8]
[366839882,1750500640065,-1000.0,0.00023005,2]
[366839883,1750500640074,-1680.0,0.00023008,2]
[366839884,1750500640083,-168.0,0.00023029,2]
[366839885,1750500640093,-1181.62,0.00023045,2]
[366839886,1750500640102,-416.638075,0.00023072,2]
[366839887,1750500640112,-5279.94042019,0.00023122,2]
[366839888,1750500640121,-2481.37501605,0.00023122,2]
[366839889,1750500640131,-5686.07,0.00023148,2]
[366839890,1750500640140,-203.0,0.00023162,4]
[366839891,1750500640151,-1500.0,0.0002318,2]
[366839892,1750500640160,-803.0,0.00023268,2]
[366839894,1750500640170,-2005.0,0.00023268,2]
[366839895,1750500640180,-559.0,0.00023268,2]
[366839897,1750500640190,-928.0,0.00023268,2]
[366839899,1750500640200,-1278.0,0.00023268,2]
[366839901,1750500640210,-591.0,0.00023268,2]
[366839903,1750500640219,-1676.0,0.00023268,2]
[366839905,1750500640228,-200.0,0.0002338,2]
[366839906,1750500640238,-5279.94042019,0.00023418,2]
[366839907,1750500640248,-2481.37501605,0.00023418,2]
[366839908,1750500640257,-156.587,0.00023479,2]
[366839909,1750500640267,-215.0738,0.00023479,2]
[366839910,1750500640276,-2115.66328814,0.00023555,9]
[366839911,1750500640286,-332.249,0.00023586,2]
[366839912,1750500640295,-1161.0,0.00023586,2]
[366839914,1750500640305,-290.209,0.00023586,2]
[366839915,1750500640315,-289.254,0.00023586,2]
[366839917,1750500640324,-7135.0,0.00023586,2]
[366839919,1750500640334,-4095.0,0.00023586,2]
[366839921,1750500640343,-885.0,0.00023586,2]
[366839922,1750500640353,-627.59162914,0.00023659,3]
[366839924,1750500640363,-411.05896858,0.00023679,2]
[366839926,1750500640372,-5279.94042019,0.00023713,2]
[366839928,1750500640382,-2481.37501605,0.00023713,2]
[366839930,1750500640392,-301.54,0.00023756,2]
[366839932,1750500640402,-248.59,0.00023756,2]
[366839934,1750500640412,-251.87,0.00023756,2]
[366839936,1750500640422,-304.59,0.00023756,2]
[366839938,1750500640431,-253.42,0.00023756,2]
[366839940,1750500640441,-248.7,0.00023756,2]
[366839942,1750500640451,-302.43,0.00023756,2]
[366839944,1750500640460,-253.36,0.00023756,2]
[366839946,1750500640469,-254.18,0.00023756,2]
[366839948,1750500640479,-305.48,0.00023756,2]
[366839950,1750500640488,-247.67,0.00023756,2]
[366839951,1750500640498,-246.95,0.00023756,2]
[366839953,1750500640507,-305.14,0.00023756,2]
[366839955,1750500640517,-250.0,0.00023757,2]
[366839957,1750500640527,-250.1,0.00023759,2]
[366839959,1750500640537,-250.78,0.00023759,2]
[366839961,1750500640546,-246.34,0.00023759,2]
[366839962,1750500640556,-305.21,0.00023762,2]
[366839963,1750500640566,-250.11,0.00023791,2]
[366839964,1750500640575,-246.86,0.00023791,2]
[366839965,1750500640585,-248.09,0.00023792,2]
[366839966,1750500640594,-252.26,0.00023792,2]
[366839967,1750500640603,-301.89,0.00023826,2]
[366839968,1750500640613,-304.02,0.00023829,2]
[366839969,1750500640622,-352.74,0.00023836,2]
[366839970,1750500640631,-166.93,0.00023838,2]
[366839971,1750500640641,-455.52,0.00023929,2]
[366839972,1750500640650,-150.0,0.00023929,2]
[366839973,1750500640659,-150.0,0.00023929,2]
[366839974,1750500640670,-359.3,0.00023929,2]
[366839975,1750500640679,-355.03,0.00023929,2]
[366839976,1750500640689,-3352.98525044,0.00023941,2]
[366839977,1750500640698,-834.26476573,0.00023941,2]
[366839978,1750500640708,-561.34750148,0.00023992,3]
[366839979,1750500640717,-2500.0,0.00023992,2]
[366839980,1750500640727,-3352.98525044,0.00024006,2]
[366839981,1750500640737,-5279.94042019,0.00024009,2]
[366839982,1750500640747,-2481.37501605,0.00024009,2]
[366839983,1750500640756,-3352.98525044,0.00024072,2]
[366839984,1750500640766,-203.0,0.00024083,6]
[366839985,1750500640775,-1125.314,0.00024085,5]
[366839986,1750500640785,-5000.0,0.00024092,2]
[366839987,1750500640794,-500.0,0.00024092,2]
[366839988,1750500640804,-2115.66328814,0.00024107,10]
[366839990,1750500640814,-163.58,0.0002411,2]
[366839992,1750500640823,-163.58,0.0002411,2]
[366839994,1750500640832,-162.8,0.0002411,2]
[366839996,1750500640841,-1595.5,0.00024111,2]
[366839998,1750500640851,-253.5,0.00024122,2]
[366840000,1750500640860,-303.4,0.00024122,2]
[366840002,1750500640870,-500.0,0.00024137,2]
[366840005,1750500640884,-500.0,0.00024137,2]
[366840007,1750500640893,-500.0,0.00024137,2]
[366840008,1750500640902,-500.0,0.00024137,2]
[366840010,1750500640912,-500.0,0.00024137,2]
[366840011,1750500640921,-500.0,0.00024137,2]
[366840012,1750500640931,-500.0,0.00024137,2]
[366840013,1750500640941,-500.0,0.00024137,2]
[366840014,1750500640954,-500.0,0.00024137,2]
[366840015,1750500640965,-500.0,0.00024137,2]
[366840016,1750500640974,-500.0,0.00024137,2]
[366840017,1750500640984,-500.0,0.00024137,2]
[366840018,1750500640994,-500.0,0.00024137,2]
[366840019,1750500641004,-500.0,0.00024137,2]
[366840020,1750500641015,-500.0,0.00024137,2]
[366840021,1750500641025,-500.0,0.00024137,2]
[366840022,1750500641035,-500.0,0.00024137,2]
[366840023,1750500641044,-500.0,0.00024137,2]
[366840024,1750500641053,-500.0,0.00024137,2]
[366840025,1750500641063,-500.0,0.00024137,2]
[366840026,1750500641072,-500.0,0.00024137,2]
[366840027,1750500641083,-500.0,0.00024137,2]
[366840028,1750500641095,-500.0,0.00024137,2]
[366840029,1750500641106,-500.0,0.00024137,2]
[366840030,1750500641117,-500.0,0.00024137,2]
[366840031,1750500641129,-500.0,0.00024137,2]
[366840032,1750500641139,-500.0,0.00024137,2]
[366840033,1750500641149,-500.0,0.00024137,2]
[366840034,1750500641158,-500.0,0.00024137,2]
[366840035,1750500641169,-500.0,0.00024137,2]
[366840036,1750500641179,-500.0,0.00024137,2]
[366840037,1750500641188,-500.0,0.00024137,2]
[366840038,1750500641197,-500.0,0.00024137,2]
[366840039,1750500641207,-500.0,0.00024137,2]
[366840040,1750500641217,-500.0,0.00024137,2]
[366840041,1750500641226,-500.0,0.00024137,2]
[366840042,1750500641236,-500.0,0.00024137,2]
[366840043,1750500641247,-500.0,0.00024137,2]
[366840044,1750500641256,-500.0,0.00024137,2]
[366840045,1750500641266,-500.0,0.00024137,2]
[366840046,1750500641276,-500.0,0.00024137,2]
[366840047,1750500641286,-500.0,0.00024137,2]
[366840048,1750500641296,-500.0,0.00024137,2]
[366840049,1750500641306,-500.0,0.00024137,2]
[366840050,1750500641316,-500.0,0.00024137,2]
[366840051,1750500641325,-500.0,0.00024137,2]
[366840052,1750500641335,-500.0,0.00024137,2]
[366840053,1750500641345,-500.0,0.00024137,2]
[366840054,1750500641355,-500.0,0.00024137,2]
[366840055,1750500641364,-500.0,0.00024137,2]
[366840056,1750500641373,-500.0,0.00024137,2]
[366840057,1750500641382,-500.0,0.00024137,2]
[366840058,1750500641392,-500.0,0.00024137,2]
[366840059,1750500641401,-500.0,0.00024137,2]
[366840060,1750500641410,-500.0,0.00024137,2]
[366840061,1750500641419,-500.0,0.00024137,2]
[366840062,1750500641429,-500.0,0.00024137,2]
[366840063,1750500641438,-500.0,0.00024137,2]
[366840064,1750500641447,-500.0,0.00024137,2]
[366840065,1750500641457,-500.0,0.00024137,2]
[366840066,1750500641466,-500.0,0.00024137,2]
[366840067,1750500641475,-500.0,0.00024137,2]
[366840068,1750500641485,-500.0,0.00024137,2]
[366840069,1750500641494,-500.0,0.00024137,2]
[366840070,1750500641504,-500.0,0.00024137,2]
[366840071,1750500641513,-500.0,0.00024137,2]
[366840072,1750500641523,-500.0,0.00024137,2]
[366840073,1750500641533,-500.0,0.00024137,2]
[366840074,1750500641543,-500.0,0.00024137,2]
[366840075,1750500641553,-500.0,0.00024137,2]
[366840076,1750500641563,-500.0,0.00024137,2]
[366840077,1750500641573,-500.0,0.00024137,2]
[366840078,1750500641582,-500.0,0.00024137,2]
[366840079,1750500641592,-500.0,0.00024137,2]
[366840080,1750500641601,-500.0,0.00024137,2]
[366840081,1750500641610,-500.0,0.00024137,2]
[366840082,1750500641620,-500.0,0.00024137,2]
[366840083,1750500641630,-500.0,0.00024137,2]
[366840084,1750500641639,-500.0,0.00024137,2]
[366840085,1750500641649,-500.0,0.00024137,2]
[366840086,1750500641658,-500.0,0.00024137,2]
[366840087,1750500641667,-500.0,0.00024137,2]
[366840088,1750500641677,-500.0,0.00024137,2]
[366840089,1750500641687,-500.0,0.00024137,2]
[366840090,1750500641696,-500.0,0.00024137,2]
[366840091,1750500641705,-500.0,0.00024137,2]
[366840092,1750500641714,-500.0,0.00024137,2]
[366840093,1750500641724,-500.0,0.00024137,2]
[366840094,1750500641733,-500.0,0.00024137,2]
[366840095,1750500641742,-500.0,0.00024137,2]
[366840096,1750500641752,-500.0,0.00024137,2]
[366840097,1750500641762,-500.0,0.00024137,2]
[366840098,1750500641772,-500.0,0.00024137,2]
[366840099,1750500641781,-500.0,0.00024137,2]
[366840100,1750500641791,-500.0,0.00024137,2]
[366840101,1750500641800,-500.0,0.00024137,2]
[366840102,1750500641810,-500.0,0.00024137,2]